bitfinex-derivatives/quotes_ETHF0:USTF0_20250607
["timestamp","ask_amount","ask_price","bid_price","bid_amount"]
[1749255524158,4.01966,2461.6,2461.0,4.01985]
[1749255524354,0.81183,2461.7,2461.1,7.52079905]
[1749255524560,2.6173,2461.8,2461.5,0.81188]
[1749255524857,2.6173,2461.8,2461.1,7.52079905]
[1749255524858,0.81188,2461.6,2461.4,0.8119]
[1749255525056,0.79742048,2461.5,2461.4,0.8119]
[1749255525361,0.79742048,2461.5,2461.3,0.81193]
[1749255526361,0.79742048,2461.5,2461.4,0.81192]
[1749255526564,4.01967,2461.6,2461.4,0.81192]
[1749255526759,0.81189,2461.5,2461.4,0.81192]
[1749255527563,3.2078,2461.6,2461.2,2.0291]
[1749255527766,4.01965,2461.6,2461.4,0.81189]
[1749255527966,3.2078,2461.6,2461.3,0.81193]
[1749255528168,0.81192,2461.4,2461.3,0.81193]
[1749255528966,0.81195,2461.3,2461.2,1.44538]
[1749255529159,0.81194,2461.4,2461.2,1.44538]
[1749255529359,0.81194,2461.4,2461.2,0.6334]
[1749255529668,3.2078,2461.6,2461.3,6.118]
[1749255529962,3.2078,2461.6,2461.3,7.5224]
[1749255530159,3.2078,2461.6,2461.5,0.81189]
[1749255530660,3.2078,2461.6,2461.4,0.8119]
[1749255530859,3.2078,2461.6,2461.5,0.81189]
[1749255531061,4.01965,2461.6,2461.4,2.2163]
[1749255531262,3.2078,2461.6,2461.5,0.81189]
[1749255532157,0.00609905,2461.9,2461.5,3.2078]
[1749255532362,0.00609905,2461.9,2461.8,0.81179]
[1749255532567,0.00609905,2461.9,2461.8,6.92979]
[1749255533463,0.00609905,2461.9,2461.8,11.92979]
[1749255534368,0.00609905,2461.9,2461.8,6.92979]
[1749255536465,0.00609905,2461.9,2461.2,1.2827]
[1749255536669,4.0196,2461.8,2461.6,0.81183]
[1749255536867,0.81184,2461.7,2461.3,7.4864]
[1749255537059,0.81184,2461.7,2461.5,0.81187]
[1749255537366,4.01961,2461.8,2461.6,0.81185]
[1749255537666,4.01961,2461.8,2461.7,6.117]
[1749255537854,0.81188,2461.6,2461.3,1.3694]
[1749255538161,4.47251732,2461.5,2461.3,2.18134]
[1749255538463,4.01971,2461.5,2461.4,6.117]
[1749255538660,5.28626441,2461.5,2461.4,6.117]
[1749255539264,5.28626441,2461.5,2461.4,6.92892]
[1749255539568,4.47435441,2461.5,2461.1,0.00609905]
[1749255539761,4.01978,2461.2,2461.1,0.00609905]
[1749255539962,5.28633441,2461.2,2461.1,0.00609905]
[1749255540463,5.28633441,2461.2,2461.1,0.81811905]
[1749255540464,4.47435441,2461.2,2461.1,0.81811905]
[1749255540765,5.28633441,2461.2,2461.1,0.00609905]
[1749255541568,9.47435441,2461.2,2460.7,0.81214]
[1749255541762,9.47435441,2461.2,2460.3,3.2078]
[1749255541763,6.39268576,2460.9,2460.4,1.3504]
[1749255541958,1.27001289,2460.8,2460.4,1.3504]
[1749255542164,1.27001289,2460.8,2460.4,2.16262]
[1749255542165,0.81219,2460.6,2460.4,2.16262]
[1749255542360,1.27001289,2460.5,2460.4,2.16262]
[1749255542869,1.27001289,2460.5,2460.4,2.16265]
[1749255543364,0.81226,2460.4,2460.3,0.81228]
[1749255543666,1.27001289,2460.4,2460.3,0.81228]
[1749255543864,1.27001289,2460.4,2460.2,7.20589905]
[1749255544071,2.08229289,2460.3,2460.2,8.01820905]
[1749255544274,1.27001289,2460.3,2460.2,8.01820905]
[1749255546170,0.44979289,2460.3,2460.2,13.01820905]
[1749255546369,3.21389905,2460.6,2460.5,0.81221]
[1749255547872,3.21389905,2460.6,2460.5,4.02001]
[1749255547873,0.00609905,2460.6,2460.5,4.02001]
[1749255550172,0.00609905,2460.6,2460.5,9.02001]
[1749255551679,3.2078,2461.1,2461.0,0.81205]
[1749255551878,4.01982,2461.1,2460.8,0.81211]
[1749255552174,0.81208,2460.9,2460.4,2.03062]
[1749255552379,3.2078,2461.1,2460.6,2.03046]
[1749255552576,3.2078,2461.1,2461.0,0.81205]
[1749255552879,3.2078,2461.1,2461.0,6.70105]
[1749255553274,0.00609905,2461.3,2461.2,0.81198]
[1749255554878,0.00609905,2461.3,2461.2,5.81198]
[1749255556683,2.89e-06,2461.3,2461.2,5.81198]
[1749255557074,3.2078,2461.6,2461.2,5.81198]
[1749255557075,3.2078,2462.2,2461.3,2.02988]
[1749255557275,3.2078,2462.2,2462.1,0.81169]
[1749255557983,2.619,2462.5,2462.4,0.81159]
[1749255558181,1.3394,2462.5,2462.4,0.81159]
[1749255558379,1.24221042,2462.5,2462.4,6.69959]
[1749255558886,3.2078,2462.6,2462.5,0.81155]
[1749255559288,0.00609905,2462.7,2462.6,0.81152]
[1749255560481,0.81157,2462.5,2462.3,0.81161]
[1749255560688,3.2078,2462.5,2462.4,5.887]
[1749255560885,3.2078,2462.5,2462.4,6.69859]
[1749255561088,3.2078,2462.5,2462.0,0.671]
[1749255561288,1.3181,2462.4,2461.9,0.00609905]
[1749255561484,4.01947,2462.2,2462.0,5.887]
[1749255561791,1.3181,2462.1,2462.0,6.69872]
[1749255563190,3.2078,2462.2,2462.1,0.81169]
[1749255563584,0.6624,2462.4,2462.3,0.81162]
[1749255564690,1.47399,2462.4,2462.3,0.81162]
[1749255564899,1.47399,2462.4,2462.0,5.887]
[1749255564900,2.76989,2462.4,2462.0,5.887]
[1749255565390,1.9583,2462.4,2462.3,0.81162]
[1749255566496,2.76989,2462.4,2462.1,5.886]
[1749255566699,2.76989,2462.4,2462.3,0.81162]
[1749255567201,1.9583,2462.4,2462.3,0.81162]
[1749255568702,2.76989,2462.4,2462.3,0.81162]
[1749255569202,1.9583,2462.4,2462.3,0.81162]
[1749255569503,2.76989,2462.4,2462.2,0.81163]
[1749255569693,1.9583,2462.4,2462.3,0.81162]
[1749255570298,2.7699,2462.4,2462.3,0.81162]
[1749255571096,1.9583,2462.4,2462.3,0.81162]
[1749255571298,0.81164,2462.3,2462.2,0.81164]
[1749255572101,2.7699,2462.4,2462.3,0.81162]
[1749255573200,0.81163,2462.3,2462.2,0.81163]
[1749255573899,1.9583,2462.4,2462.1,5.886]
[1749255574097,0.81165,2462.2,2462.1,5.886]
[1749255574302,0.81172,2462.0,2461.9,0.00609905]
[1749255574504,0.81172,2462.0,2461.3,5.732]
[1749255574505,3.2078,2462.0,2461.3,5.732]
[1749255574693,4.01966,2461.6,2461.4,0.8119]
[1749255574895,4.01966,2461.6,2461.5,0.81188]
[1749255574896,3.2078,2461.6,2461.5,0.81188]
[1749255575200,4.01965,2461.6,2461.4,0.81191]
[1749255575404,3.2078,2461.6,2461.3,5.732]
[1749255575703,3.2078,2461.6,2461.5,0.81188]
[1749255576200,4.5472,2461.6,2461.5,0.81188]
[1749255576592,3.2078,2462.2,2461.5,3.2078]
[1749255576793,2.65,2462.5,2462.4,0.81159]
[1749255577296,3.46158,2462.5,2462.3,0.8116]
[1749255577501,0.81159,2462.4,2462.3,0.8116]
[1749255577702,5.30959,2462.4,2462.3,0.8116]
[1749255577998,5.30959,2462.4,2461.7,3.32349]
[1749255577999,0.81164,2462.3,2462.2,0.81164]
[1749255578306,2.10184,2462.3,2462.1,0.81167]
[1749255579103,2.10184,2462.3,2462.2,0.81166]
[1749255579500,2.10182,2462.3,2462.2,0.81166]
[1749255580199,1.2902,2462.3,2462.2,0.81166]
[1749255581098,1.3106,2462.5,2462.0,5.23704]
[1749255581405,1.3106,2462.5,2462.4,0.81159]
[1749255581601,2.55663513,2462.5,2462.4,0.81159]
[1749255581908,3.21389905,2462.7,2462.6,0.81152]
[1749255582098,4.46090998,2462.7,2462.6,0.81152]
[1749255582400,0.81152,2462.6,2462.5,0.81154]
[1749255582605,0.81157,2462.5,2462.4,6.54458]
[1749255582800,2.62658101,2462.5,2462.1,0.81167]
[1749255583009,3.2078,2462.3,2462.0,5.733]
[1749255583197,2.62658101,2462.2,2461.7,5.732]
[1749255583397,0.81178,2461.9,2461.7,6.5438]
[1749255583706,0.81179,2461.8,2461.7,6.5438]
[1749255584407,0.81179,2461.8,2461.7,5.732]
[1749255584609,0.81179,2461.8,2461.7,6.54382]
[1749255584904,4.01954,2462.0,2461.9,0.81175]
[1749255585101,0.81175,2461.9,2461.8,0.81176]
[1749255585407,1.24773503,2461.9,2461.8,0.81176]
[1749255585600,2.05948503,2461.9,2461.8,0.81176]
[1749255586003,1.24773503,2461.9,2461.8,0.81176]
[1749255586307,2.05948503,2461.9,2461.8,0.81176]
[1749255586604,2.05948503,2461.9,2461.7,6.54379]
[1749255586903,3.2078,2462.0,2461.7,5.732]
[1749255587107,1.24787429,2461.9,2461.3,5.23761]
[1749255587412,1.24778448,2461.8,2461.7,0.81181]
[1749255589001,2.05957448,2461.8,2461.6,0.81183]
[1749255589210,3.2078,2461.7,2461.6,0.81183]
[1749255589609,4.01962,2461.7,2461.6,0.81183]
[1749255589908,3.2078,2461.7,2461.6,0.81183]
[1749255590109,4.01962,2461.7,2461.6,0.81183]
[1749255590306,3.2078,2461.7,2461.6,0.81183]
[1749255590909,4.01962,2461.7,2461.6,0.81183]
[1749255591311,3.2078,2461.7,2461.6,0.81183]
[1749255591509,0.81185,2461.6,2461.5,5.732]
[1749255591705,0.81195,2461.3,2461.2,0.00609905]
[1749255591904,4.01975,2461.3,2461.2,0.00609905]
[1749255592107,5.26699996,2461.3,2461.2,0.00609905]
[1749255592706,4.45504996,2461.3,2461.2,0.00609905]
[1749255593012,0.81193,2461.4,2461.3,0.81195]
[1749255593213,5.26630901,2461.4,2461.3,0.81195]
[1749255593413,10.26630901,2461.4,2461.3,0.81195]
[1749255593912,5.26630901,2461.4,2461.3,0.81195]
[1749255594408,0.81195,2461.3,2461.2,0.00609905]
[1749255594616,3.39352901,2461.3,2461.2,0.00609905]
[1749255595113,8.39352901,2461.3,2461.2,0.00609905]
[1749255596415,3.39352901,2461.3,2461.2,0.00609905]
[1749255596712,8.58409259,2461.3,2461.2,0.00609905]
[1749255597409,8.39352901,2461.3,2461.2,0.00609905]
[1749255598517,8.58049444,2461.3,2461.2,0.00609905]
[1749255599407,3.58049444,2461.3,2461.2,0.00609905]
[1749255599609,3.39352901,2461.3,2461.2,0.00609905]
[1749255601014,2.02996,2461.2,2460.4,5.734]
[1749255601320,0.81228,2460.3,2460.2,0.6919]
[1749255601511,0.81231,2460.2,2460.1,0.6627]
[1749255603611,0.81231,2460.2,2460.0,7.0885]
[1749255603612,0.81238,2460.0,2459.9,0.00609905]
[1749255603823,4.02018,2460.0,2459.9,0.00609905]
[1749255604612,3.2078,2460.0,2459.9,0.00609905]
[1749255604912,9.05e-06,2460.4,2460.3,0.81228]
[1749255605116,9.05e-06,2460.4,2460.3,9.68108]
[1749255605317,9.05e-06,2460.4,2460.3,14.68108]
[1749255605914,9.05e-06,2460.4,2460.3,15.33338]
[1749255609013,9.05e-06,2460.4,2460.3,3.8601]
[1749255609214,0.81225905,2460.4,2460.3,0.6523]
[1749255609622,9.05e-06,2460.4,2460.3,1.46458]
[1749255611717,0.81272,2459.0,2458.6,3.2078]
[1749255611919,2.0307,2460.3,2458.4,2.0561]
[1749255611920,4.02055,2458.9,2458.4,2.0561]
[1749255612120,4.02056,2458.9,2458.6,0.81283]
[1749255612324,3.2078,2458.9,2458.5,7.13415041]
[1749255612723,3.21389905,2458.9,2458.8,0.81278]
[1749255612918,4.02665905,2458.9,2458.6,0.81283]
[1749255613118,4.02665905,2458.9,2458.7,1.3918]
[1749255613313,4.02665905,2458.9,2458.7,1.47314379]
[1749255613519,0.81277,2458.8,2458.7,0.08134379]
[1749255614525,0.81277,2458.8,2458.5,2.12886905]
[1749255614819,0.81277,2458.8,2458.6,5.663]
[1749255615025,3.2078,2458.7,2458.6,5.663]
[1749255615223,4.02061,2458.7,2458.6,5.663]
[1749255615425,3.2078,2458.7,2458.6,5.663]
[1749255616213,4.02061,2458.7,2458.6,5.663]
[1749255616426,3.2078,2458.7,2458.6,5.663]
[1749255616827,3.2078,2458.7,2458.6,6.47584]
[1749255617030,0.00609905,2458.9,2458.8,0.81277]
[1749255618026,0.00609905,2458.9,2458.8,7.83197]
[1749255620917,3.2078,2459.3,2459.2,0.81264]
[1749255621521,3.2078,2459.6,2459.3,0.81258]
[1749255621729,0.81255,2459.5,2459.3,0.81258]
[1749255622030,0.81255,2459.5,2459.3,2.19308]
[1749255622431,0.81257,2459.4,2459.3,1.3805]
[1749255622628,0.81257,2459.4,2459.3,2.19311]
[1749255622825,0.81255,2459.5,2459.3,2.19311]
[1749255623029,0.81255,2459.5,2459.4,0.81257]
[1749255623635,3.21389905,2459.6,2459.5,0.81254]
[1749255623819,3.21389905,2459.6,2459.5,6.47754]
[1749255624025,3.2078,2459.9,2459.8,0.81244]
[1749255624224,2.0305,2460.6,2460.0,0.81237]
[1749255624225,4.02012,2460.2,2460.0,0.81237]
[1749255624531,4.02014,2460.2,2460.0,0.81236]
[1749255624831,3.2078,2460.2,2460.1,0.81234]
[1749255625027,0.00609905,2460.4,2460.2,0.81228]
[1749255625227,0.81228,2460.3,2460.2,5.664]
[1749255625631,0.00609905,2460.4,2460.3,0.81228]
[1749255626129,0.81833905,2460.4,2460.2,6.47629]
[1749255626726,0.00609905,2460.4,2460.3,0.81228]
[1749255627135,0.00609905,2460.4,2460.3,7.20938]
[1749255627327,3.2078,2461.1,2460.3,10.41718]
[1749255627529,3.2078,2461.1,2461.0,0.81204]
[1749255627843,3.2078,2461.4,2461.3,0.81195]
[1749255628033,3.2078,2461.4,2461.2,0.81196]
[1749255628537,3.2078,2461.4,2461.3,0.82466391]
[1749255629032,0.81799905,2461.5,2461.3,0.01271391]
[1749255629232,0.00609905,2461.5,2461.4,5.663]
[1749255629435,0.00609905,2461.5,2461.4,6.47491]
[1749255629735,0.00609905,2461.5,2461.4,7.78602391]
[1749255630227,0.00609905,2461.5,2461.4,6.97411391]
[1749255630625,0.00609905,2461.5,2461.4,7.78602391]
[1749255632431,0.81797905,2461.5,2461.4,0.01271391]
[1749255632735,0.00609905,2461.5,2461.4,5.67471391]
[1749255632933,0.81797905,2461.5,2461.4,5.67471391]
[1749255633134,0.00609905,2461.5,2461.4,6.48662391]
[1749255633331,0.00609905,2461.5,2461.4,0.82462391]
[1749255633631,0.00609905,2461.5,2461.4,6.48662391]
[1749255634226,0.00609905,2461.5,2461.4,11.48662391]
[1749255634524,9.05e-06,2461.5,2461.4,14.69442391]
[1749255640241,9.05e-06,2461.5,2461.4,4.03242391]
[1749255640536,9.05e-06,2461.5,2461.4,6.52762391]
[1749255640738,0.81188905,2461.5,2461.4,5.71571391]
[1749255640943,0.81188905,2461.5,2461.4,6.52762391]
[1749255640944,9.05e-06,2461.5,2461.4,6.52762391]
[1749255641434,0.81188905,2461.5,2461.4,5.71571391]
[1749255643036,0.81188905,2461.5,2461.4,6.52762391]
[1749255643338,0.81188905,2461.5,2461.4,5.71571391]
[1749255643835,0.81188905,2461.5,2461.4,6.52763391]
[1749255644342,0.81188905,2461.5,2461.4,5.71571391]
[1749255644841,0.81188905,2461.5,2461.4,6.52762391]
[1749255645642,0.81188905,2461.5,2461.4,5.71571391]
[1749255646344,0.81188905,2461.5,2461.4,6.52763391]
[1749255646642,0.81189905,2461.5,2461.4,6.52763391]
[1749255647645,9.05e-06,2461.5,2461.4,6.52763391]
[1749255648349,0.81188905,2461.5,2461.4,5.71571391]
[1749255648549,2.12088905,2461.5,2461.4,6.52763391]
[1749255651147,2.12088905,2461.5,2461.4,5.71571391]
[1749255651340,2.12088905,2461.5,2461.4,6.52763391]
[1749255653743,0.81188905,2461.5,2461.4,6.52763391]
[1749255654542,2.06932853,2461.5,2461.4,6.52763391]
[1749255654854,2.06932853,2461.5,2461.4,0.82463391]
[1749255655047,2.06932853,2461.5,2461.4,0.01271391]
[1749255655246,3.40732853,2461.5,2461.4,0.01271391]
[1749255658452,3.40980291,2461.5,2461.4,0.01271391]
[1749255658641,8.40980291,2461.5,2461.4,0.01271391]
[1749255660750,0.81198,2461.2,2461.1,0.00609905]
[1749255660952,5.27969386,2461.2,2461.1,0.00609905]
[1749255661157,4.46771386,2461.2,2461.1,0.00609905]
[1749255661347,1.25991386,2461.2,2461.1,0.81811905]
[1749255661550,9.05e-06,2461.5,2461.4,0.81192]
[1749255661747,9.05e-06,2461.5,2461.4,6.51592]
[1749255661948,9.05e-06,2461.5,2461.4,9.72372]
[1749255663157,3.2078,2462.2,2462.1,0.81169]
[1749255663351,3.2078,2462.2,2462.1,6.51569]
[1749255663549,3.2078,2462.2,2462.1,5.704]
[1749255664160,3.2078,2462.2,2462.1,6.51569]
[1749255667160,0.00609905,2462.4,2462.3,0.81162]
[1749255667869,0.00609905,2462.4,2462.3,7.08552]
[1749255668165,3.2078,2463.2,2463.1,0.81136]
[1749255668567,0.6412,2463.4,2463.0,5.51]
[1749255668974,0.6412,2463.4,2463.3,0.81129]
[1749255669367,3.2078,2463.5,2463.4,0.81126]
[1749255669874,3.2078,2463.5,2463.4,6.32126]
[1749255670074,0.00382191,2463.6,2463.4,6.32126]
[1749255670075,0.00382191,2463.6,2463.5,0.81123]
[1749255670271,0.00382191,2463.6,2463.5,2.20353]
[1749255670674,0.00382191,2463.6,2463.5,6.32023]
[1749255671674,0.00382191,2463.6,2463.5,7.71253]
[1749255675369,0.00382191,2463.6,2463.5,7.71153]
[1749255675675,0.00382191,2463.6,2463.5,6.31923]
[1749255675876,3.21162191,2463.6,2463.5,6.31923]
[1749255676776,0.00382191,2463.6,2463.5,6.31923]
[1749255677178,3.21162191,2463.6,2463.5,6.31923]
[1749255677377,0.00382191,2463.6,2463.5,6.31923]
[1749255678677,0.00382191,2463.6,2463.5,7.64863]
[1749255678873,1.3491,2464.6,2463.5,7.64863]
[1749255678874,3.2078,2464.5,2463.5,11.8374]
[1749255679173,3.2078,2464.8,2464.2,3.2078]
[1749255679373,3.2078,2464.8,2464.7,0.81083]
[1749255679577,3.2078,2464.8,2464.7,6.31783]
[1749255680075,6.00092,2465.1,2464.9,0.81077]
[1749255680275,6.00092,2465.1,2464.7,5.507]
[1749255680276,0.81073,2465.0,2464.8,0.81077]
[1749255680876,5.1902,2465.1,2464.7,5.507]
[1749255681079,3.2078,2464.8,2464.7,6.31783]
[1749255681380,4.01851,2465.1,2464.9,0.81075]
[1749255681772,4.01852,2465.1,2464.9,0.81076]
[1749255682076,4.01852,2465.1,2464.7,5.507]
[1749255682077,3.2078,2465.1,2465.0,0.81073]
[1749255682378,4.01851,2465.1,2464.9,0.81074]
[1749255682579,3.2078,2465.1,2464.7,5.507]
[1749255682781,4.01851,2465.1,2464.9,0.81074]
[1749255682978,0.81077,2464.9,2464.5,5.51208655]
[1749255683181,3.2078,2464.8,2464.7,0.81082]
[1749255683884,4.01861,2464.8,2464.6,0.81086]
[1749255684183,0.81086,2464.6,2464.5,5.51208655]
[1749255684585,2.82125,2464.7,2464.5,5.51208655]
[1749255684786,2.0104,2464.7,2464.5,5.51208655]
[1749255684985,0.6375,2464.7,2464.6,0.81086]
[1749255685282,0.81086,2464.6,2464.5,0.00608655]
[1749255685486,2.82125,2464.7,2464.5,6.32198655]
[1749255685675,2.0104,2464.7,2464.6,0.81086]
[1749255685882,0.6375,2464.7,2464.6,0.81086]
[1749255688585,1.44833,2464.7,2464.6,0.81086]
[1749255688785,1.44833,2464.7,2464.5,6.32196655]
[1749255688988,0.6375,2464.7,2464.6,0.81086]
[1749255689685,1.44833,2464.7,2464.6,0.81086]
[1749255689986,1.44834,2464.7,2464.6,0.81086]
[1749255690380,0.6375,2464.7,2464.6,0.81086]
[1749255690580,1.44833,2464.7,2464.6,0.81086]
[1749255690790,0.6375,2464.7,2464.6,0.81086]
[1749255690986,3.2078,2465.3,2464.5,5.51108655]
[1749255691286,3.2078,2464.9,2464.6,5.505]
[1749255691486,1.2878,2464.8,2464.6,6.31585]
[1749255691686,2.09861,2464.8,2464.6,6.31585]
[1749255692489,1.2878,2464.8,2464.7,0.81083]
[1749255692690,1.2878,2464.8,2464.6,5.505]
[1749255692691,0.81083,2464.7,2464.6,6.31585]
[1749255692890,2.09861,2464.8,2464.7,0.81083]
[1749255693183,2.09861,2464.8,2464.6,6.31584]
[1749255693389,2.09861,2464.8,2464.6,5.505]
[1749255693589,2.09862,2464.8,2464.6,6.31584]
[1749255693791,2.09862,2464.8,2464.6,5.505]
[1749255694091,1.2878,2464.8,2464.7,0.81083]
[1749255694390,2.0986,2464.8,2464.7,0.81083]
[1749255694595,3.35390465,2464.8,2464.6,5.505]
[1749255694893,1.2878,2464.8,2464.7,0.81083]
[1749255695088,2.54318342,2464.8,2464.7,0.81083]
[1749255695489,2.54318342,2464.8,2464.6,6.31585]
[1749255695686,1.25654458,2464.7,2464.5,0.00608655]
[1749255695894,2.06738144,2464.6,2464.5,0.00608655]
[1749255696186,3.25462144,2464.6,2464.5,5.46208655]
[1749255696392,1.92012144,2464.6,2464.5,6.27298655]
[1749255696895,1.25652144,2464.6,2464.5,6.27298655]
[1749255699695,1.25652144,2464.6,2464.5,12.65228655]
[1749255699889,3.2078,2464.9,2464.8,0.8108]
[1749255700197,0.6674,2465.5,2465.4,0.8106]
[1749255700497,0.81065,2465.3,2465.1,0.81067]
[1749255700694,3.2078,2465.2,2465.1,0.81067]
[1749255700897,3.2078,2465.2,2465.0,5.456]
[1749255701199,3.2078,2465.2,2465.1,0.8107]
[1749255701798,4.01847,2465.2,2465.1,0.8107]
[1749255702095,3.2078,2465.2,2465.1,0.8107]
[1749255702292,3.2078,2465.2,2465.0,5.456]
[1749255702492,3.2078,2465.2,2465.1,0.8107]
[1749255703903,0.81071,2465.1,2464.9,5.456]
[1749255704094,2.13652,2465.1,2464.9,5.456]
[1749255704293,1.3258,2465.1,2464.9,5.456]
[1749255704598,0.81073,2465.0,2464.9,5.456]
[1749255705096,7.71807,2465.0,2464.5,0.00608655]
[1749255705397,0.81086,2464.6,2464.5,0.00608655]
[1749255705798,2.16916,2464.6,2464.5,0.00608655]
[1749255707299,1.3583,2464.6,2464.1,5.456]
[1749255707500,0.811,2464.2,2464.1,5.456]
[1749255709100,0.811,2464.2,2463.9,0.00608655]
[1749255709101,0.81106,2464.0,2463.9,0.00608655]
[1749255709292,4.01886,2464.0,2463.9,0.00608655]
[1749255711791,5.26416209,2464.0,2463.9,0.00608655]
[1749255713599,4.45310209,2464.0,2463.9,0.81717655]
[1749255714303,5.26416209,2464.0,2463.9,0.81717655]
[1749255714803,2.05636209,2464.0,2463.9,0.81717655]
[1749255715399,1.24530209,2464.0,2463.9,0.81717655]
[1749255715891,4.45310209,2464.0,2463.9,0.81717655]
[1749255716402,2.05636209,2464.0,2463.9,0.81717655]
[1749255716605,5.26416209,2464.0,2463.9,0.81717655]
[1749255716800,5.26416209,2464.0,2463.9,0.00608655]
[1749255718001,5.26416209,2464.0,2463.9,0.81717655]
[1749255719503,4.01886,2464.0,2463.9,0.81717655]
[1749255719706,4.01886,2464.0,2463.9,0.00608655]
[1749255719901,4.01886,2464.0,2463.9,0.81717655]
[1749255720299,4.01886,2464.0,2463.9,0.00608655]
[1749255720506,0.81101,2464.2,2464.1,0.81101]
[1749255720696,0.81105,2464.1,2464.0,0.81104]
[1749255720901,2.05457781,2464.1,2464.0,0.81104]
[1749255721619,1.24352781,2464.1,2464.0,0.81104]
[1749255721906,0.811,2464.2,2464.1,0.81103]
[1749255722097,2.05441301,2464.2,2464.1,0.81103]
[1749255722300,2.05442301,2464.2,2464.1,0.81103]
[1749255722500,0.81104,2464.1,2464.0,0.81103]
[1749255723107,0.81102,2464.2,2464.1,0.81101]
[1749255723306,2.05435902,2464.2,2464.1,0.81101]
[1749255723606,0.00604489,2464.4,2464.3,0.81096]
[1749255723796,0.00604489,2464.4,2464.3,6.26796]
[1749255723996,3.2078,2465.0,2464.9,0.81076]
[1749255726403,3.2078,2465.0,2464.7,7.4328]
[1749255726404,3.2078,2465.0,2464.7,1.4628]
[1749255726706,4.01853,2465.0,2464.9,5.452]
[1749255727096,5.26327507,2465.0,2464.9,5.452]
[1749255727302,5.26327507,2465.0,2464.9,6.26276]
[1749255727607,4.45254507,2465.0,2464.9,6.26276]
[1749255729005,5.26327507,2465.0,2464.9,5.452]
[1749255729303,5.26327507,2465.0,2464.3,29.77717]
[1749255729304,0.81076,2464.9,2464.8,5.452]
[1749255729505,0.8109,2464.5,2464.4,6.097]
[1749255729705,3.2078,2464.6,2464.1,0.81101]
[1749255730010,3.2078,2464.2,2464.1,0.81101]
[1749255730210,4.45192392,2464.2,2464.1,0.81101]
[1749255731199,4.45192392,2464.2,2464.1,2.85481]
[1749255731409,0.81103,2464.1,2464.0,5.452]
[1749255731709,1.24412392,2464.1,2463.9,0.81716655]
[1749255731909,0.81106,2464.0,2463.9,0.81716655]
[1749255732112,2.05518392,2464.0,2463.9,0.81716655]
[1749255732406,1.24412392,2464.0,2463.9,0.81717655]
[1749255732708,1.24412392,2464.0,2463.9,2.19807655]
[1749255733103,1.24412392,2464.0,2463.9,0.00608655]
[1749255733305,2.05518392,2464.0,2463.9,0.00608655]
[1749255733499,1.24412392,2464.0,2463.9,0.81717655]
[1749255733700,1.24412392,2464.0,2463.9,6.26917655]
[1749255734501,2.05518392,2464.0,2463.9,5.45808655]
[1749255735008,1.24412392,2464.0,2463.9,6.26917655]
[1749255737005,3.2078,2464.2,2464.1,0.81103]
[1749255737312,4.45163859,2464.2,2464.1,0.81103]
[1749255739313,4.45163859,2464.2,2464.1,2.21623]
[1749255739608,0.81103,2464.1,2464.0,0.693]
[1749255740209,0.81103,2464.1,2464.0,1.50404]
[1749255741004,0.81103,2464.1,2464.0,1.50403]
[1749255741911,3.2078,2464.2,2464.0,0.693]
[1749255742111,1.2440775,2464.1,2464.0,0.693]
[1749255742515,1.2440775,2464.1,2464.0,1.50404]
[1749255743215,1.2440775,2464.1,2464.0,2.88854]
[1749255744217,3.2078,2464.2,2464.1,0.81103]
[1749255744411,5.26298088,2464.2,2464.1,0.81103]
[1749255744717,4.45198088,2464.2,2464.1,0.81103]
[1749255744918,5.26298088,2464.2,2464.1,0.81103]
[1749255745318,4.45198088,2464.2,2464.1,0.81103]
[1749255746116,4.45198088,2464.2,2464.0,2.88854]
[1749255746317,1.24418088,2464.1,2464.0,2.88856]
[1749255748917,1.24418088,2464.1,2464.0,1.50406]
[1749255749917,3.2078,2464.2,2464.1,0.81103]
[1749255750115,4.4523568,2464.2,2464.1,0.81103]
[1749255750722,4.4523568,2464.2,2464.1,1.49923]
[1749255752716,3.2078,2465.4,2464.1,5.6882]
[1749255752917,0.81071,2465.1,2464.9,0.81075]
[1749255753123,0.81071,2465.1,2465.0,0.81073]
[1749255753521,0.6376,2465.2,2465.0,0.81073]
[1749255753522,1.44828,2465.2,2465.0,0.81073]
[1749255754320,0.8107,2465.1,2465.0,0.81073]
[1749255754622,1.44829,2465.2,2465.0,0.81073]
[1749255754814,0.6376,2465.2,2465.0,0.81073]
[1749255755014,4.0185,2465.1,2465.0,0.81073]
[1749255755222,4.0185,2465.1,2464.9,6.26274]
[1749255755428,0.81073,2465.0,2464.9,5.452]
[1749255755724,3.2078,2465.1,2464.6,0.6747]
[1749255755925,0.8108,2464.8,2464.7,5.444]
[1749255756827,0.8108,2464.8,2464.7,6.25483]
[1749255757028,0.8108,2464.8,2464.7,5.444]
[1749255757327,0.81078,2464.9,2464.8,0.81078]
[1749255758225,0.81078,2464.9,2464.8,6.25478]
[1749255758426,0.81078,2464.9,2464.8,5.444]
[1749255758925,2.02704,2464.8,2463.9,2.03375655]
[1749255759135,2.02704,2464.8,2464.6,0.81086]
[1749255759136,0.6647,2464.7,2464.6,0.81086]
[1749255759329,3.2078,2464.8,2464.2,5.444]
[1749255759629,0.81085,2464.7,2464.6,0.81085]
[1749255759829,0.81085,2464.7,2464.6,6.25485]
[1749255760030,4.01862,2464.8,2464.7,0.81083]
[1749255760233,3.2078,2464.8,2464.6,6.25484]
[1749255760427,10.23483,2464.8,2464.3,0.81095]
[1749255760632,0.81093,2464.4,2464.3,5.444]
[1749255761036,2.13463,2464.4,2464.3,5.444]
[1749255761631,2.13463,2464.4,2464.3,6.25496]
[1749255762932,2.13465,2464.4,2464.3,6.25496]
[1749255763330,2.13465,2464.4,2464.3,5.444]
[1749255763533,2.13465,2464.4,2464.3,6.25496]
[1749255763832,2.13465,2464.4,2464.3,5.444]
[1749255764027,0.81096,2464.3,2464.2,0.81098]